bitfinex-derivatives/quotes_BTCF0:USTF0_20250811
["timestamp","ask_amount","ask_price","bid_price","bid_amount"]
[1754878282679,1.0123755,120880.0,120870.0,0.0001]
[1754878282877,0.0827195,120870.0,120860.0,0.06756321]
[1754878283073,0.0827332,120850.0,120840.0,0.04626]
[1754878283275,1.77292434,120850.0,120840.0,0.04626]
[1754878284173,1.77292434,120850.0,120840.0,0.54626]
[1754878284378,1.77302434,120850.0,120840.0,0.54636]
[1754878284980,1.3911932,120850.0,120840.0,0.54636]
[1754878285185,1.69029114,120850.0,120840.0,0.71552]
[1754878285490,1.77302444,120850.0,120840.0,0.71552]
[1754878286381,0.82546444,120850.0,120840.0,0.5001]
[1754878286577,0.0827537,120820.0,120810.0,0.27300227]
[1754878286781,1.144,120820.0,120810.0,0.28570598]
[1754878287088,2.09112,120820.0,120810.0,0.46690566]
[1754878287291,2.09112,120820.0,120810.0,0.38414506]
[1754878287588,2.09108,120820.0,120810.0,0.38414506]
[1754878287791,2.09118,120820.0,120810.0,0.32672877]
[1754878288095,2.09214,120820.0,120810.0,0.77028917]
[1754878288484,1.1451,120820.0,120810.0,1.27028917]
[1754878288790,0.01687487,120850.0,120840.0,0.28564]
[1754878288986,0.96367487,120850.0,120840.0,1.11101094]
[1754878289190,0.01687487,120850.0,120840.0,1.11101094]
[1754878289391,0.01687487,120850.0,120840.0,1.19378211]
[1754878289580,0.96363487,120850.0,120840.0,1.19378211]
[1754878289780,0.96373487,120850.0,120840.0,1.19388211]
[1754878290187,0.96373487,120850.0,120840.0,1.19588211]
[1754878290390,0.01697487,120850.0,120840.0,1.19588211]
[1754878290692,0.96377487,120850.0,120840.0,1.19588211]
[1754878291486,0.01697487,120850.0,120840.0,1.2312799]
[1754878291789,0.37846706,120880.0,120840.0,1.2312799]
[1754878291790,0.01656706,120880.0,120860.0,0.2481746]
[1754878292086,0.01676834,120890.0,120880.0,0.1529321]
[1754878292276,0.96316834,120890.0,120880.0,0.1529321]
[1754878292681,0.01676834,120890.0,120880.0,1.11098324]
[1754878292885,1.14412,120910.0,120900.0,0.3683388]
[1754878293087,1.14422,120910.0,120900.0,1.11096994]
[1754878293390,0.55666578,120940.0,120930.0,0.3683182]
[1754878293585,1.50282578,120940.0,120930.0,0.3683182]
[1754878293785,0.55666578,120940.0,120930.0,0.28564]
[1754878293982,0.60238578,120940.0,120930.0,0.04626]
[1754878294189,1.94768859,120940.0,120920.0,0.3608]
[1754878294486,0.17928,120920.0,120910.0,0.487453]
[1754878294691,0.17928,120920.0,120910.0,0.28564]
[1754878294993,0.225,120920.0,120910.0,0.04626]
[1754878295187,0.53978578,120940.0,120930.0,0.28564]
[1754878295382,1.51986228,120940.0,120930.0,0.3683181]
[1754878295591,1.56558228,120940.0,120930.0,0.28564]
[1754878295785,0.82233342,120940.0,120920.0,0.4915635]
[1754878296085,0.19585228,120940.0,120920.0,0.608848]
[1754878296297,0.01658578,120940.0,120930.0,0.7421181]
[1754878296486,0.96206578,120940.0,120930.0,0.7421181]
[1754878296681,0.96402578,120940.0,120930.0,1.2421181]
[1754878297092,0.19743578,120940.0,120930.0,0.8813182]
[1754878297289,1.19047578,120940.0,120930.0,0.8813182]
[1754878297595,1.19047578,120940.0,120930.0,0.86051538]
[1754878297786,0.19743578,120940.0,120930.0,0.94319358]
[1754878297986,0.96378578,120940.0,120930.0,0.94729358]
[1754878298187,0.96378578,120940.0,120930.0,1.93798976]
[1754878298188,0.01658578,120940.0,120930.0,1.93798976]
[1754878298589,0.96166578,120940.0,120930.0,1.55615862]
[1754878298895,0.96246578,120940.0,120930.0,1.93798976]
[1754878299193,0.01758578,120940.0,120930.0,1.93798976]
[1754878299393,0.96242578,120940.0,120930.0,1.93798976]
[1754878299589,0.96242578,120940.0,120930.0,2.23998976]
[1754878299798,0.01758578,120940.0,120930.0,2.23998976]
[1754878299994,0.01658578,120940.0,120930.0,2.24098976]
[1754878300896,0.01658578,120940.0,120930.0,1.85915862]
[1754878301192,0.38183114,120980.0,120930.0,1.69839556]
[1754878301496,1.32623114,120970.0,120950.0,0.3608]
[1754878301690,1.34297881,120970.0,120950.0,0.3608]
[1754878301887,0.38183114,120960.0,120950.0,0.7434644]
[1754878302084,1.34265881,120960.0,120950.0,0.52613977]
[1754878302288,0.38183114,120960.0,120950.0,0.69559177]
[1754878302591,0.38183114,120960.0,120950.0,0.69569177]
[1754878302795,0.38183114,120960.0,120950.0,0.99569177]
[1754878302996,1.32593114,120970.0,120950.0,1.66102007]
[1754878303200,1.34209321,120970.0,120950.0,1.66102007]
[1754878303797,0.96026207,120970.0,120950.0,1.66102007]
[1754878303991,0.38183114,120960.0,120950.0,1.36102007]
[1754878304194,1.37323114,120960.0,120950.0,1.19566807]
[1754878304496,0.43055114,120960.0,120950.0,1.36102007]
[1754878304688,1.37395114,120960.0,120950.0,1.36102007]
[1754878304883,1.37395114,120960.0,120950.0,1.03033977]
[1754878304884,0.43055114,120960.0,120950.0,1.03033977]
[1754878305095,0.66347114,120960.0,120950.0,0.5042]
[1754878305293,1.4222542,120960.0,120950.0,0.5042]
[1754878305597,2.3654942,120960.0,120950.0,0.5042]
[1754878305792,1.04042306,120960.0,120950.0,0.5042]
[1754878305998,1.98358306,120960.0,120950.0,0.5042]
[1754878306197,1.60175192,120960.0,120950.0,0.5042]
[1754878306403,1.98358306,120960.0,120950.0,0.5042]
[1754878306791,1.98358306,120960.0,120950.0,0.5868644]
[1754878307186,1.98358306,120960.0,120950.0,0.5042]
[1754878307795,1.4222542,120960.0,120950.0,0.5042]
[1754878307998,1.4222542,120960.0,120930.0,0.06597538]
[1754878308298,0.28064,120930.0,120920.0,0.1653677]
[1754878308499,1.60507114,120930.0,120920.0,0.0826831]
[1754878308799,1.60507114,120930.0,120920.0,0.08677537]
[1754878308800,1.60503114,120930.0,120920.0,0.08677537]
[1754878309205,1.2232,120930.0,120920.0,0.23169168]
[1754878309402,1.60503114,120930.0,120920.0,0.23179168]
[1754878310095,1.60503114,120930.0,120920.0,0.23379168]
[1754878311096,1.02327114,120930.0,120920.0,0.23379168]
[1754878311295,0.04772,120930.0,120920.0,0.40215738]
[1754878311492,0.66247114,120930.0,120920.0,0.23678758]
[1754878311708,1.60443114,120930.0,120920.0,0.23678758]
[1754878312307,0.66247114,120930.0,120920.0,0.73678758]
[1754878312500,1.96507114,120930.0,120920.0,0.73378758]
[1754878313000,1.96507114,120930.0,120920.0,0.73478758]
[1754878313201,1.60427114,120930.0,120920.0,0.73378758]
[1754878313401,1.60427114,120930.0,120920.0,0.73578758]
[1754878314001,1.60427114,120930.0,120920.0,0.73478758]
[1754878314308,1.60427114,120930.0,120920.0,0.80665822]
[1754878314512,1.96507114,120930.0,120920.0,0.80666222]
[1754878314803,1.96455114,120930.0,120920.0,0.64030205]
[1754878315004,1.02327114,120930.0,120910.0,0.04177443]
[1754878315209,1.02327114,120920.0,120910.0,0.04177443]
[1754878315510,1.02327114,120920.0,120910.0,0.12446603]
[1754878315699,1.02327114,120920.0,120910.0,0.29594603]
[1754878315894,0.20959,120920.0,120910.0,0.50170191]
[1754878316103,0.16187,120930.0,120920.0,0.3772247]
[1754878316402,0.0001,120930.0,120920.0,0.54259]
[1754878316599,0.74263114,120960.0,120920.0,1.40539]
[1754878316800,0.3608,120960.0,120950.0,0.3022242]
[1754878317000,0.94092,120960.0,120950.0,0.5425287]
[1754878317203,0.16187,120970.0,120950.0,0.9033287]
[1754878317404,0.94084,120960.0,120950.0,0.98602458]
[1754878317907,1.10259,120960.0,120950.0,1.04345627]
[1754878318105,0.04782,120970.0,120950.0,0.85693658]
[1754878318311,1.34934,120970.0,120950.0,0.88977627]
[1754878318808,0.40862,120970.0,120950.0,0.8420343]
[1754878319001,0.99024,120960.0,120950.0,0.8420343]
[1754878319405,0.04972,120960.0,120950.0,1.0073863]
[1754878319707,0.98992,120960.0,120950.0,1.0073863]
[1754878319913,0.98792,120960.0,120950.0,1.0073863]
[1754878320208,0.98792,120960.0,120950.0,1.3681863]
[1754878320905,0.98892,120960.0,120950.0,1.3681863]
[1754878321717,0.98892,120960.0,120950.0,1.2028343]
[1754878322210,0.001,120960.0,120950.0,1.75001744]
[1754878322612,0.002,120960.0,120950.0,1.75001744]
[1754878323206,0.001,120960.0,120950.0,1.75401744]
[1754878324109,0.001,120960.0,120950.0,1.3721863]
[1754878324110,0.98788,120960.0,120950.0,1.3721863]
[1754878324503,0.98788,120960.0,120950.0,1.3762863]
[1754878324905,0.001,120960.0,120950.0,1.6762863]
[1754878325304,0.04772,120960.0,120950.0,1.6782863]
[1754878326212,0.04772,120960.0,120950.0,1.67828487]
[1754878327105,0.04772,120960.0,120950.0,2.38188487]
[1754878327505,0.28645,120960.0,120950.0,1.91597287]
[1754878327903,0.28645,120960.0,120950.0,1.55517287]
[1754878328300,1.22445,120960.0,120950.0,1.55517287]
[1754878329007,1.22445,120960.0,120950.0,0.85157287]
[1754878329207,0.28645,120960.0,120950.0,0.85157287]
[1754878329403,0.04772,120960.0,120950.0,0.85313287]
[1754878329708,0.9852,120970.0,120950.0,1.59420401]
[1754878330015,0.9852,120970.0,120960.0,0.07429292]
[1754878330206,0.9851,120970.0,120960.0,0.08408121]
[1754878330711,0.04742,120970.0,120960.0,0.16675658]
[1754878330911,0.98474,120970.0,120960.0,0.16675658]
[1754878331110,0.9847,120970.0,120960.0,0.66675658]
[1754878331310,0.9847,120970.0,120960.0,1.04858772]
[1754878331506,0.9847,120970.0,120960.0,1.05058772]
[1754878331709,0.9847,120970.0,120960.0,0.66875658]
[1754878332108,0.98466,120970.0,120960.0,0.83409257]
[1754878332707,0.40832,120980.0,120960.0,1.38123431]
[1754878332909,0.40832,120980.0,120970.0,0.0826506]
[1754878333212,0.40822,120980.0,120970.0,0.09243889]
[1754878333612,0.40822,120980.0,120970.0,0.17510743]
[1754878334115,0.40822,120980.0,120970.0,0.67510743]
[1754878334511,0.40822,120980.0,120970.0,0.67610743]
[1754878335016,0.64695,120980.0,120970.0,0.67610633]
[1754878335518,1.58311,120980.0,120970.0,0.67710633]
[1754878335911,1.96494114,120980.0,120970.0,0.67710633]
[1754878336113,1.96478114,120980.0,120970.0,0.67710633]
[1754878336310,1.96466114,120980.0,120970.0,0.59445573]
[1754878336508,1.02878114,120980.0,120970.0,0.67710613]
[1754878336910,1.96450114,120980.0,120970.0,0.67710613]
[1754878337215,1.96450114,120980.0,120970.0,0.67910613]
[1754878337510,1.96450114,120980.0,120970.0,0.68010613]
[1754878338110,1.96450114,120980.0,120970.0,0.67810613]
[1754878338310,1.96410114,120980.0,120970.0,0.67510613]
[1754878339011,1.96410114,120980.0,120970.0,0.67510603]
[1754878340719,1.96410114,120980.0,120970.0,0.67610603]
[1754878341016,1.58159,120980.0,120970.0,0.67610603]
[1754878341212,1.58159,120980.0,120970.0,0.67710603]
[1754878341813,1.58159,120980.0,120970.0,0.67610603]
[1754878342021,0.64695,120980.0,120970.0,0.93890603]
[1754878342319,1.58159,120980.0,120970.0,0.93890603]
[1754878342818,0.64695,120980.0,120970.0,0.93890603]
[1754878343018,1.58103,120980.0,120970.0,0.93890603]
[1754878343218,1.58103,120980.0,120970.0,0.99600167]
[1754878344010,1.58103,120980.0,120970.0,0.99700167]
[1754878344608,1.58103,120980.0,120970.0,0.9974559]
[1754878344815,1.58103,120980.0,120970.0,0.93990603]
[1754878345618,0.3608,120980.0,120970.0,1.48705717]
[1754878345809,0.04742,120980.0,120970.0,1.48705717]
[1754878346123,0.21618,120980.0,120970.0,1.10932603]
[1754878346621,0.21618,120980.0,120970.0,0.94400603]
[1754878346919,0.28615,120980.0,120970.0,0.94500603]
[1754878347313,0.04742,120980.0,120970.0,0.68220603]
[1754878347515,0.04742,120980.0,120970.0,1.20832603]
[1754878347711,0.04742,120980.0,120970.0,1.20732603]
[1754878348716,0.04742,120980.0,120970.0,1.04200603]
[1754878349218,0.04742,120980.0,120970.0,1.11345466]
[1754878350116,0.21618,120980.0,120970.0,1.11345466]
[1754878350317,0.04742,120980.0,120970.0,1.11345466]
[1754878351822,0.36459,120980.0,120970.0,1.11345466]
[1754878352023,1.40455,120980.0,120970.0,0.75265466]
[1754878352619,1.40455,120980.0,120970.0,0.75265451]
[1754878353021,0.46095209,120990.0,120970.0,1.46510185]
[1754878353219,0.04742,120980.0,120970.0,0.91795071]
[1754878353523,0.47291,120980.0,120970.0,0.91795071]
[1754878353726,1.40415,120980.0,120970.0,0.91795071]
[1754878354119,1.40415,120980.0,120970.0,0.91695071]
[1754878354318,1.40415,120980.0,120970.0,0.91795071]
[1754878354929,1.40415,120980.0,120970.0,0.91695071]
[1754878355225,1.40379,120980.0,120970.0,0.91795071]
[1754878355721,1.40351,120980.0,120970.0,0.91795071]
[1754878356132,1.40339,120980.0,120970.0,0.91795071]
[1754878356420,0.47291,120980.0,120970.0,0.91795071]
[1754878356624,1.40339,120980.0,120970.0,0.91795071]
[1754878356821,1.40339,120980.0,120970.0,0.91695071]
[1754878357026,1.40339,120980.0,120970.0,0.91895071]
[1754878357327,1.40331,120980.0,120970.0,0.91795071]
[1754878357527,1.40303,120980.0,120970.0,0.92095071]
[1754878357819,1.40303,120980.0,120970.0,0.91995071]
[1754878358021,1.40303,120980.0,120970.0,0.91695071]
[1754878358222,0.47291,120980.0,120970.0,0.91795071]
[1754878358415,0.85474114,120980.0,120970.0,0.75265011]
[1754878358926,1.40267,120980.0,120970.0,0.75265011]
[1754878359724,1.40255,120980.0,120970.0,1.01545011]
[1754878359919,1.40255,120980.0,120970.0,1.01445011]
[1754878360120,0.47291,120980.0,120970.0,1.28503751]
[1754878360428,0.04742,120980.0,120970.0,1.21358888]
[1754878360627,0.4658,120980.0,120970.0,1.28571837]
[1754878360827,1.395,120980.0,120970.0,1.28671837]
[1754878361216,1.39488,120980.0,120970.0,1.28671837]
[1754878361716,1.39488,120980.0,120970.0,1.02391837]
[1754878362228,1.3948,120980.0,120970.0,1.02391837]
[1754878362429,0.4658,120980.0,120970.0,0.75333097]
[1754878362632,1.39448,120980.0,120970.0,1.02391837]
[1754878363130,1.39448,120980.0,120970.0,1.02291837]
[1754878363930,1.39448,120980.0,120970.0,1.02391837]
[1754878364521,1.39448,120980.0,120970.0,1.01423133]
[1754878364722,1.05585,120980.0,120970.0,1.02391827]
[1754878364926,1.28812,120980.0,120970.0,1.02391827]
[1754878365535,0.9761,120980.0,120970.0,1.02391827]
[1754878365830,1.20837,120980.0,120970.0,1.02391827]
[1754878366234,0.4658,120980.0,120970.0,0.75333087]
[1754878366425,1.3934,120980.0,120970.0,0.75333087]
[1754878366727,1.39332,120980.0,120970.0,0.75333087]
[1754878367031,1.39332,120980.0,120970.0,0.75433087]
[1754878367332,0.4658,120980.0,120970.0,1.02491827]
[1754878367526,0.39709,120980.0,120970.0,0.75433087]
[1754878367729,1.32437,120980.0,120970.0,0.95278878]
[1754878367932,1.39308,120980.0,120970.0,0.95278878]
[1754878368221,1.39308,120980.0,120970.0,1.31258878]
[1754878368628,0.4658,120980.0,120970.0,1.31258878]
[1754878368828,1.39268,120980.0,120970.0,1.31258878]
[1754878369229,1.39268,120980.0,120970.0,1.31158878]
[1754878369524,1.39268,120980.0,120970.0,0.95178878]
[1754878369729,1.39268,120980.0,120970.0,1.31258878]
[1754878370724,1.39268,120980.0,120970.0,1.31358878]
[1754878371225,1.39268,120980.0,120970.0,0.95278878]
[1754878371430,1.39268,120980.0,120970.0,0.78324177]
[1754878371634,0.4658,120980.0,120970.0,0.78324177]
[1754878371926,1.39176,120980.0,120970.0,0.68220138]
[1754878372125,1.39172,120980.0,120970.0,0.95278878]
[1754878373520,0.04742,120980.0,120970.0,1.41462917]
[1754878373725,0.4658,120980.0,120970.0,1.41052917]
[1754878373924,1.39116,120980.0,120970.0,1.30948878]
[1754878374131,1.39116,120980.0,120970.0,1.03890138]
[1754878374332,1.39116,120980.0,120970.0,1.30948878]
[1754878374730,0.4658,120980.0,120970.0,1.30948878]
[1754878376133,1.39048,120980.0,120970.0,1.30948878]
[1754878376329,0.4658,120980.0,120970.0,1.30948878]
[1754878376727,0.4658,120980.0,120970.0,1.41051637]
[1754878377843,0.04742,120980.0,120970.0,1.41051637]
[1754878378030,0.10015209,120990.0,120970.0,1.98510438]
[1754878378329,0.37166686,120990.0,120980.0,0.3532301]
[1754878378532,7.92313,121000.0,120980.0,1.18157084]
[1754878378733,7.92313,121000.0,120990.0,0.0826359]
[1754878379030,7.92313,121000.0,120990.0,0.09232284]
[1754878379431,7.92313,121000.0,120990.0,0.19335806]
[1754878379432,7.8610274,121000.0,120990.0,0.19335806]
[1754878379632,7.50421427,121000.0,120990.0,0.27610951]
[1754878379841,7.50421427,121000.0,120990.0,0.17507324]
[1754878380138,7.43789687,121000.0,120990.0,0.17507324]
[1754878380332,7.20562687,121000.0,120990.0,0.17507324]
[1754878380530,7.14154687,121000.0,120990.0,1.16483205]
[1754878380733,7.14154687,121000.0,120990.0,0.24147205]
[1754878381037,6.89692267,121000.0,120990.0,0.51205945]
[1754878381233,6.89692267,121000.0,120990.0,0.74147205]
[1754878381434,7.12919267,121000.0,120990.0,1.76459205]
[1754878381634,6.88242812,121000.0,120990.0,1.76459205]
[1754878382140,6.70940812,121000.0,120990.0,1.90868822]
[1754878382435,6.50702512,121000.0,120990.0,2.17562422]
[1754878382641,6.50702512,121000.0,120990.0,2.44621162]
[1754878382837,6.49205512,121000.0,120990.0,2.07550422]
[1754878383139,6.67040512,121000.0,120990.0,2.07850422]
[1754878383440,6.43813512,121000.0,120990.0,2.34130422]
[1754878383831,6.67040512,121000.0,120990.0,2.34130422]
[1754878384235,6.67040512,121000.0,120990.0,2.44187842]
[1754878384541,6.67040512,121000.0,120990.0,2.30188225]
[1754878384742,6.67040512,121000.0,120990.0,1.21422625]
[1754878385042,6.66139252,121000.0,120990.0,2.13634625]
[1754878385237,3.11539457,121000.0,120990.0,1.21422625]
[1754878385543,2.80998457,121000.0,120990.0,1.10927205]
[1754878385736,2.80998457,121000.0,120990.0,2.03091205]
[1754878385737,2.76359457,121000.0,120990.0,2.03091205]
[1754878385939,2.67270457,121000.0,120990.0,2.03091205]
[1754878386837,2.91350457,121000.0,120990.0,2.03091205]
[1754878387036,2.91350457,121000.0,120990.0,2.03051205]
[1754878387231,2.89829757,121000.0,120990.0,2.03051205]
[1754878387437,2.89829757,121000.0,120990.0,1.21008114]
[1754878387737,2.89829757,121000.0,120990.0,2.12916114]
[1754878387936,2.89829757,121000.0,120990.0,2.13116114]
[1754878388637,2.89829757,121000.0,120990.0,2.03035205]
[1754878390234,2.84945757,121000.0,120990.0,2.03035205]
[1754878390438,2.84945757,121000.0,120990.0,2.03445205]
[1754878390637,2.84184757,121000.0,120990.0,2.03445205]
[1754878391036,2.78973757,121000.0,120990.0,2.03445205]
[1754878391433,2.78155757,121000.0,120990.0,2.03445205]
[1754878391639,2.76854757,121000.0,120990.0,2.03445205]
[1754878392349,2.70799757,121000.0,120990.0,2.03445205]
[1754878393447,2.70799757,121000.0,120990.0,2.17854822]
[1754878393646,2.70799757,121000.0,120990.0,1.25746822]
[1754878393847,2.70799757,121000.0,120990.0,2.17658822]
[1754878394036,2.70799757,121000.0,120990.0,1.25746822]
[1754878394237,3.24917237,121000.0,120990.0,1.1756127]
[1754878394442,3.89750497,121000.0,120990.0,1.0082486]
[1754878394641,2.57905757,121000.0,120990.0,1.18527626]
[1754878394948,2.36041757,121000.0,120990.0,2.7501878]
[1754878395141,2.2488476,121000.0,120990.0,2.37880626]
[1754878395342,2.519435,121000.0,120990.0,0.98601626]
[1754878395540,2.2488476,121000.0,120990.0,0.98611626]
[1754878395748,3.437955,121000.0,120990.0,0.84002009]
[1754878396050,3.1673676,121000.0,120990.0,0.57822009]
[1754878396245,3.437955,121000.0,120990.0,0.57822009]
[1754878396748,3.437955,121000.0,120990.0,0.57922009]
[1754878397848,2.519435,121000.0,120990.0,0.45405059]
[1754878398145,2.519435,121000.0,120990.0,0.59814676]
[1754878398354,3.437195,121000.0,120990.0,0.49731626]
[1754878398650,3.437195,121000.0,120990.0,0.56493146]
[1754878398845,3.437195,121000.0,120990.0,0.42083529]
[1754878399049,3.1666076,121000.0,120990.0,0.42083529]
[1754878399249,3.1666076,121000.0,120990.0,0.62885529]
[1754878399446,3.1666076,121000.0,120990.0,0.41883529]
[1754878399648,3.1666076,121000.0,120990.0,0.41683529]
[1754878399851,3.437195,121000.0,120990.0,0.41883529]
[1754878400352,3.437195,121000.0,120990.0,0.42493529]
[1754878400948,2.519435,121000.0,120990.0,0.42493529]
[1754878401148,2.7900224,121000.0,120990.0,0.00079309]
[1754878401353,0.04804,120990.0,120980.0,0.2479239]
[1754878401557,0.7495874,120990.0,120980.0,0.31486371]
[1754878401856,1.6663474,120990.0,120980.0,0.50161175]
[1754878402951,1.6663474,120990.0,120980.0,0.25468785]
[1754878402952,0.7495874,120990.0,120980.0,0.25468785]
[1754878403155,0.7495874,120990.0,120980.0,0.0011]
[1754878403156,1.6659074,120990.0,120980.0,0.0011]
[1754878403357,1.6659074,120990.0,120980.0,0.0878427]
[1754878404557,1.6669074,120990.0,120980.0,0.0878427]
[1754878405056,0.7515874,120990.0,120980.0,0.0868427]
[1754878405254,1.6677874,120990.0,120980.0,0.0868427]
[1754878406158,1.6677874,120990.0,120980.0,0.65324699]
[1754878406359,1.6677874,120990.0,120980.0,0.66293375]
[1754878406551,1.3972,120990.0,120980.0,0.66293375]
[1754878406753,1.39632,120990.0,120980.0,0.70856375]
[1754878407058,1.6669074,120990.0,120980.0,0.74558862]
[1754878407655,1.39632,120990.0,120980.0,0.74558862]
[1754878407859,1.6659074,120990.0,120980.0,0.74558862]
[1754878408053,1.39432,120990.0,120980.0,0.74558862]
[1754878408358,1.6649074,120990.0,120980.0,0.74558862]
[1754878408555,1.6649074,120990.0,120980.0,0.88968479]
[1754878408753,0.7495874,120990.0,120980.0,0.88968479]
[1754878408955,0.32277566,120990.0,120980.0,1.36371479]
[1754878409268,1.23737566,120990.0,120980.0,1.36371479]
[1754878409558,1.23737566,120990.0,120980.0,1.63430219]
[1754878409959,0.32277566,120990.0,120980.0,1.63430219]
[1754878410152,1.16693566,120990.0,120980.0,1.49020602]
[1754878410359,0.25261566,120990.0,120980.0,1.49020602]
[1754878410657,0.25261566,120990.0,120980.0,1.49020477]
[1754878410854,2.8750576,121000.0,120990.0,0.2449656]
[1754878411160,2.8749576,121000.0,120990.0,0.71060719]
[1754878411557,1.9607176,121000.0,120990.0,0.79326206]
[1754878411763,2.8746376,121000.0,120990.0,0.79326206]
[1754878412263,2.8746376,121000.0,120990.0,1.29326206]
[1754878412760,2.8746376,121000.0,120990.0,1.56484946]
[1754878413356,2.8746376,121000.0,120990.0,1.15010598]
[1754878413357,1.9607176,121000.0,120990.0,1.15010598]
[1754878413556,2.8739576,121000.0,120990.0,1.15010598]
[1754878413757,2.8739176,121000.0,120990.0,1.56484395]
[1754878414160,2.8739176,121000.0,120990.0,1.29425655]
[1754878414364,2.7604276,121000.0,120990.0,1.29425655]
[1754878414552,2.7604276,121000.0,120990.0,1.15010598]
[1754878414758,1.8288367,121000.0,120990.0,1.68349338]
[1754878414960,1.81404943,121000.0,120990.0,2.59733338]
[1754878415264,1.78604943,121000.0,120990.0,1.68449338]
[1754878415464,1.75804943,121000.0,120990.0,1.78449338]
[1754878415664,1.51968943,121000.0,120990.0,1.68449338]
[1754878416166,1.51968943,121000.0,120990.0,1.42169338]
[1754878416359,1.51668943,121000.0,120990.0,1.42169338]
[1754878416554,1.49268943,121000.0,120990.0,1.42169338]
[1754878416751,1.49268943,121000.0,120990.0,1.52169338]
[1754878416957,1.49268943,121000.0,120990.0,2.43393338]
[1754878417464,1.49268943,121000.0,120990.0,1.52169338]
[1754878417651,1.48705943,121000.0,120990.0,1.56584395]
[1754878418360,1.46684943,121000.0,120990.0,1.56584395]
[1754878418560,1.46684943,121000.0,120990.0,1.42169338]
[1754878419665,2.34916943,121000.0,120990.0,1.15110598]
[1754878419963,1.43384943,121000.0,120990.0,1.42169338]
[1754878420264,2.34500943,121000.0,120990.0,1.52260727]
[1754878420662,1.40584943,121000.0,120990.0,1.52260727]
[1754878420867,1.39613943,121000.0,120990.0,2.43352727]
[1754878421165,1.39613943,121000.0,120990.0,2.33257338]
[1754878421558,1.39613943,121000.0,120990.0,1.42169338]
[1754878421760,0.54699433,121000.0,120990.0,1.88249338]
[1754878421964,0.17218903,121000.0,120990.0,2.05188938]
[1754878422160,0.11077166,121000.0,120990.0,1.71600598]
[1754878422368,0.03083,121000.0,120990.0,3.06232938]
[1754878422561,0.03083,121000.0,120990.0,3.20645761]
[1754878423062,8.37801001,121020.0,121010.0,0.5529019]
[1754878423367,8.37801001,121020.0,121010.0,0.56258741]
[1754878423669,8.37801001,121020.0,121010.0,0.64523545]
[1754878424265,5.40094735,121020.0,121010.0,2.24189485]
[1754878424466,3.57844464,121020.0,121010.0,3.84523453]
[1754878424663,2.67760862,121020.0,121010.0,3.88084722]
[1754878424858,1.89815636,121020.0,121010.0,3.88084722]
[1754878425061,1.47368169,121020.0,121010.0,3.77996253]
[1754878425257,0.1001,121030.0,121010.0,3.77996253]
[1754878425258,0.08990767,121030.0,121010.0,3.78406253]
[1754878425565,6.8020472,121040.0,121030.0,0.0826082]
[1754878425764,6.36905408,121040.0,121030.0,1.59670851]
[1754878425966,6.27723033,121040.0,121030.0,1.52228819]
[1754878426164,5.63942465,121040.0,121030.0,1.12515919]
[1754878426370,5.63527439,121040.0,121030.0,1.3210315]
[1754878426670,5.59020439,121040.0,121030.0,2.3309865]
[1754878426865,5.63527439,121040.0,121030.0,1.5219065]
[1754878427062,5.63527439,121040.0,121030.0,1.4211315]
[1754878427268,5.86993039,121040.0,121030.0,2.2299715]
[1754878427469,5.86993039,121040.0,121030.0,1.4219028]
[1754878427671,5.68114739,121040.0,121030.0,1.1987117]
[1754878427867,5.24218739,121040.0,121030.0,1.6987117]
[1754878428068,5.08186739,121040.0,121030.0,1.7987117]
[1754878428269,3.65077465,121040.0,121030.0,2.79173137]
[1754878428575,2.20482052,121040.0,121030.0,3.7281305]
[1754878428769,7.30190223,121060.0,121050.0,0.0825946]
[1754878428971,6.94411461,121060.0,121050.0,2.29262381]
[1754878429170,6.85413109,121060.0,121050.0,2.48831946]
[1754878429370,6.77149757,121060.0,121050.0,2.56120582]
[1754878429579,6.81656757,121060.0,121050.0,2.56112582]
[1754878429763,6.66806757,121060.0,121050.0,2.56112582]
[1754878429975,6.54166757,121060.0,121050.0,2.56122582]
[1754878430277,6.54166757,121060.0,121050.0,1.06114555]
[1754878430477,6.54166757,121060.0,121050.0,1.13302772]
[1754878430678,6.54166757,121060.0,121050.0,2.16566634]
[1754878430882,6.78227757,121060.0,121050.0,2.09366417]
[1754878431079,6.78227757,121060.0,121050.0,1.41571677]
[1754878431378,6.78227757,121060.0,121050.0,2.65763894]
[1754878431776,6.78227757,121060.0,121050.0,2.92822634]
[1754878432073,6.52542955,121060.0,121050.0,2.85634417]
[1754878432277,6.52542955,121060.0,121050.0,2.97526813]
[1754878432481,6.52542955,121060.0,121050.0,3.43746921]
[1754878433182,6.52542955,121060.0,121050.0,2.45834704]
[1754878433483,6.42873335,121060.0,121050.0,3.87786921]
[1754878433782,6.42873335,121060.0,121050.0,3.88196921]
[1754878433973,6.42873335,121060.0,121050.0,3.81976754]
[1754878434177,6.41304643,121060.0,121050.0,2.91292754]
[1754878434476,5.78172706,121060.0,121050.0,3.80967179]
[1754878434678,5.57305951,121060.0,121050.0,3.8912342]
[1754878434878,5.22894456,121060.0,121050.0,3.88155396]
[1754878435078,4.84575161,121060.0,121050.0,3.88255396]
[1754878435274,4.19365078,121060.0,121050.0,2.97619396]
[1754878435477,2.68025382,121060.0,121050.0,3.12307395]
[1754878435785,1.0416424,121060.0,121050.0,3.95703178]
[1754878435979,0.04366977,121070.0,121060.0,0.0825872]
[1754878436180,7.5,121080.0,121060.0,0.0825872]
[1754878436181,6.18517962,121080.0,121070.0,0.2207804]
[1754878436385,5.63082697,121080.0,121070.0,2.16697067]
[1754878436579,5.3364884,121080.0,121070.0,2.37269569]
[1754878436783,5.19016215,121080.0,121070.0,1.46629569]
[1754878436977,5.1005663,121080.0,121070.0,2.37157569]
[1754878437285,4.46562957,121080.0,121070.0,2.73864429]
[1754878437485,4.46562957,121080.0,121070.0,3.17151569]
[1754878437675,3.97006822,121080.0,121070.0,2.32375413]
[1754878437980,3.97006822,121080.0,121070.0,3.34079969]
[1754878437981,2.74295815,121080.0,121070.0,3.34079969]
[1754878438180,1.93920767,121080.0,121070.0,3.41268186]
[1754878438375,1.7792299,121080.0,121070.0,1.97049569]
[1754878438681,1.48542213,121080.0,121070.0,3.17633569]
[1754878438979,0.82217189,121080.0,121070.0,3.24821786]
[1754878439181,6.42143299,121100.0,121090.0,0.0825669]
[1754878439381,5.20161072,121100.0,121090.0,1.67961947]
[1754878439582,4.17443925,121100.0,121090.0,1.74866931]
[1754878439779,2.36049098,121100.0,121090.0,3.28467301]
[1754878440080,1.11845641,121100.0,121090.0,3.28455301]
[1754878440280,0.14695526,121100.0,121090.0,3.28455301]
[1754878440483,6.65292208,121120.0,121110.0,0.1653333]
[1754878440685,4.72693638,121120.0,121110.0,2.84644357]
[1754878440886,3.88262433,121120.0,121110.0,4.03931925]
[1754878441080,3.10424091,121120.0,121110.0,3.51793904]